bitfinex/quotes_ETHUSD_20250107
["timestamp","ask_amount","ask_price","bid_price","bid_amount"]
[1736260941366,2.75702,3627.1,3626.1,0.296]
[1736260941567,0.57762592,3627.0,3626.1,0.296]
[1736260941861,0.02762592,3627.0,3626.1,0.296]
[1736260942047,0.22103851,3627.0,3626.1,3.08134424]
[1736260942278,0.22103851,3627.0,3626.1,0.32357424]
[1736260942576,0.55,3627.2,3626.2,0.0075]
[1736260942750,0.02762592,3627.1,3626.1,0.296]
[1736260943335,0.02762592,3627.1,3626.1,3.05374]
[1736260943336,0.55,3627.0,3626.1,3.05374]
[1736260943535,0.02762592,3626.9,3626.1,3.05374]
[1736260943782,0.36109251,3626.9,3626.1,3.05374]
[1736260943960,0.02762592,3627.0,3626.2,2.78527417]
[1736260944143,0.02762592,3627.0,3626.2,0.02757415]
[1736260944350,0.02762592,3627.1,3626.4,2.75755]
[1736260944636,0.55,3627.2,3626.6,2.75735]
[1736260944831,0.55,3627.2,3626.7,2.75732]
[1736260945262,0.55,3627.2,3626.3,0.296]
[1736260945445,0.55,3627.2,3626.6,2.75738]
[1736260945935,0.9565,3627.3,3626.7,0.02757074]
[1736260946157,0.99232592,3627.7,3627.0,2.75708]
[1736260946358,0.55,3627.6,3627.0,2.75708]
[1736260946678,0.02762592,3627.5,3626.6,2.75739]
[1736260946875,0.02762592,3627.5,3624.7,0.75954733]
[1736260946876,0.25,3624.8,3624.7,0.75954733]
[1736260947046,2.759,3624.5,3624.4,3.30739743]
[1736260947246,2.78662592,3624.5,3624.4,3.30739743]
[1736260947448,3.10528851,3624.5,3624.4,3.30739743]
[1736260947754,2.75909,3624.4,3623.3,4.01082512]
[1736260947947,1.5147,3624.2,3623.3,4.01082512]
[1736260948273,0.02762592,3624.1,3623.3,4.01082512]
[1736260948478,1.5147,3624.2,3623.3,6.77072512]
[1736260948859,1.5147,3624.2,3623.3,4.01082512]
[1736260949250,0.02762592,3624.1,3623.3,4.01082512]
[1736260949452,0.02762592,3624.1,3623.2,3.11497]
[1736260949654,0.02762592,3624.1,3623.2,0.355]
[1736260951190,0.55,3624.0,3621.9,2.76096]
[1736260951492,0.49776751,3624.1,3621.9,2.76094]
[1736260951493,0.55,3623.8,3621.9,2.76094]
[1736260951651,2.76038,3622.7,3621.8,0.355]
[1736260951854,0.55,3622.4,3621.8,0.355]
[1736260952156,0.57762592,3622.4,3621.8,0.355]
[1736260953089,0.57762592,3622.4,3621.3,1.0691]
[1736260953090,0.95,3622.2,3621.3,0.355]
[1736260953291,0.4,3622.2,3621.3,0.355]
[1736260953495,0.4,3622.2,3621.5,2.76121]
[1736260953732,0.4,3622.2,3621.6,0.311621]
[1736260953990,0.4,3622.2,3621.3,0.355]
[1736260954352,0.4,3622.2,3621.4,3.02761035]
[1736260954593,0.4,3622.2,3621.4,3.0]
[1736260954794,0.4,3622.2,3621.3,0.355]
[1736260955163,0.4,3622.2,3621.4,2.76135]
[1736260955375,0.4,3622.2,3621.4,0.311635]
[1736260955687,0.4,3622.2,3621.5,2.76127]
[1736260955875,0.4,3622.2,3621.3,3.355]
[1736260956992,0.4,3622.2,3621.4,0.02760893]
[1736260957160,0.4,3622.2,3621.3,0.355]
[1736260957489,0.4,3622.2,3621.5,2.76128]
[1736260957667,0.4,3622.2,3621.3,0.355]
[1736260957864,0.4,3622.2,3621.7,2.76111]
[1736260958191,1.3647,3623.0,3621.8,0.02760703]
[1736260958369,0.4,3623.0,3622.3,2.76063]
[1736260958690,0.9647,3623.5,3622.4,0.02760156]
[1736260958876,0.02762592,3623.8,3622.9,2.76015]
[1736260959078,0.02762592,3623.9,3623.0,0.355]
[1736260959280,0.46217775,3623.8,3623.0,0.355]
[1736260959454,0.42762592,3624.0,3623.0,0.38259834]
[1736260959658,0.9647,3624.1,3623.4,2.75983]
[1736260959859,0.4,3624.4,3624.0,2.75937]
[1736260960060,0.4,3624.4,3623.5,3.02759462]
[1736260960307,0.4,3624.4,3623.5,0.87875246]
[1736260960590,0.4,3624.4,3624.0,2.75936]
[1736260960791,0.9647,3624.7,3624.1,0.02758994]
[1736260961497,1.3647,3625.4,3624.3,2.75908]
[1736260961656,0.02762592,3625.3,3624.4,0.355]
[1736260961858,0.44267451,3625.3,3624.4,0.355]
[1736260962053,0.44267451,3625.3,3624.2,0.355]
[1736260962294,0.55,3624.8,3624.2,0.355]
[1736260962502,0.55,3624.5,3624.2,0.355]
[1736260963194,0.4,3624.6,3624.2,0.355]
[1736260964398,0.55,3624.3,3624.2,0.355]
[1736260964700,0.9647,3624.4,3624.2,0.355]
[1736260965204,0.55,3624.1,3623.1,2.76006]
[1736260965504,1.10277551,3624.1,3623.6,0.355]
[1736260965692,0.57762592,3624.1,3623.6,0.355]
[1736260966511,3.33693592,3624.1,3623.0,2.76006]
[1736260966701,0.57762592,3624.1,3623.1,0.355]
[1736260966909,0.57762592,3624.1,3623.1,0.38259656]
[1736260967081,0.57762592,3624.1,3623.1,3.11505]
[1736260967403,3.80715751,3624.1,3623.1,0.355]
[1736260967572,1.04777751,3624.1,3623.1,0.355]
[1736260968005,0.9647,3624.4,3623.2,2.75999]
[1736260968006,0.94232592,3624.4,3623.2,2.75999]
[1736260968170,2.75924,3624.2,3623.1,0.355]
[1736260968509,3.70140592,3624.4,3623.1,3.11505]
[1736260968709,0.94232592,3624.4,3623.3,2.75991]
[1736260968869,0.94232592,3624.4,3623.1,0.355]
[1736260968870,0.94232592,3624.4,3623.1,3.11504]
[1736260969202,0.94232592,3624.4,3622.4,1.0941]
[1736260969429,2.75938,3624.0,3622.5,0.355]
[1736260969707,3.0,3624.0,3622.5,3.11552]
[1736260969925,2.75937,3624.1,3622.8,2.76028]
[1736260970132,0.55,3624.0,3622.9,0.355]
[1736260970326,2.75916,3624.3,3623.0,3.11506]
[1736260970619,2.75902,3624.5,3623.1,0.355]
[1736260970767,2.75918,3624.3,3623.1,3.11503]
[1736260971099,0.9423,3624.1,3623.2,2.75998]
[1736260971317,0.9423,3624.1,3623.3,0.02759607]
[1736260971604,0.9423,3624.1,3623.2,2.75998]
[1736260971901,0.9423,3624.1,3623.1,0.355]
[1736260972103,0.9423,3624.1,3623.2,2.75995]
[1736260972267,0.9423,3624.1,3623.1,0.355]
[1736260972648,0.9423,3624.1,3623.3,2.75985]
[1736260972787,0.9423,3624.1,3623.1,0.49782]
[1736260973334,0.9423,3624.1,3623.4,2.75983]
[1736260973496,0.9423,3624.1,3623.2,2.75999]
[1736260973698,0.9423,3624.1,3623.1,0.49782]
[1736260973699,0.9423,3624.1,3623.6,2.75968]
[1736260973900,0.9423,3624.7,3623.7,0.02759424]
[1736260974225,0.25630764,3624.6,3624.4,2.75907]
[1736260974445,0.25630764,3624.6,3624.5,0.339]
[1736260974991,1.0229,3625.2,3624.5,0.339]
[1736260975203,0.55,3625.0,3624.5,0.339]
[1736260975426,0.25503805,3624.9,3624.5,0.339]
[1736260975891,0.25503805,3624.8,3624.3,0.339]
[1736260976091,0.51161816,3624.8,3624.3,0.339]
[1736260976540,0.25503805,3624.7,3624.3,0.339]
[1736260976697,0.25503805,3624.7,3624.2,0.339]
[1736260976899,0.25503805,3624.6,3624.2,0.339]
[1736260977490,0.51161816,3624.5,3623.2,2.0447]
[1736260977698,1.0229,3624.4,3624.1,0.339]
[1736260977931,1.53451816,3624.4,3624.1,0.339]
[1736260978355,0.25658011,3624.3,3624.1,0.339]
[1736260978492,0.51161816,3624.3,3624.1,0.339]
[1736260979233,0.25658011,3624.2,3624.1,0.339]
[1736260979595,1.0229,3624.4,3624.1,0.339]
[1736260980228,0.25698795,3624.3,3624.1,0.339]
[1736260980616,0.25533783,3624.2,3624.1,3.0983]
[1736260980804,0.25533783,3624.2,3624.1,6.684078]
[1736260981130,1.0229,3625.0,3624.2,2.75916]
[1736260981355,0.55,3624.9,3623.2,5.263452]
[1736260981630,0.55,3624.9,3623.9,2.7594]
[1736260981835,0.25525546,3624.8,3623.8,2.75946]
[1736260982008,0.51216304,3624.8,3623.9,2.7594]
[1736260982337,0.25525546,3624.7,3623.3,3.339]
[1736260982631,0.25525546,3624.7,3623.4,3.339]
[1736260982632,0.55,3624.6,3623.4,3.339]
[1736260982838,0.25525546,3624.5,3623.5,3.09868]
[1736260982997,0.51216304,3624.5,3623.6,2.75967]
[1736260983197,0.51216304,3624.5,3623.8,2.75951]
[1736260983397,0.25525546,3624.4,3623.8,2.75951]
[1736260983602,0.51216304,3624.4,3623.9,2.75939]
[1736260983820,0.51216304,3624.4,3624.0,2.75931]
[1736260983821,0.25525546,3624.3,3624.0,2.75931]
[1736260984138,0.51216304,3624.3,3624.2,5.75922]
[1736260984298,0.25690758,3624.3,3624.2,6.81172]
[1736260984503,1.0229,3625.5,3624.2,6.81172]
[1736260984504,1.0229,3625.5,3624.6,2.75886]
[1736260984808,1.71375607,3626.1,3624.7,0.02758684]
[1736260985121,0.25564549,3625.4,3625.3,2.75839]
[1736260985435,1.71375607,3626.1,3625.7,2.75806]
[1736260985775,2.85626012,3627.3,3626.4,2.75753]
[1736260986050,2.85626012,3627.3,3627.2,3.82424]
[1736260986051,1.57488086,3627.3,3627.2,3.82424]
[1736260986351,1.57488086,3627.3,3626.8,2.75721]
[1736260986634,2.75526895,3627.3,3626.8,0.339]
[1736260986835,5.91277597,3627.1,3626.1,0.339]
[1736260987419,0.55,3626.9,3626.1,0.339]
[1736260987663,0.25592846,3627.0,3626.1,0.339]
[1736260987843,1.0229,3627.3,3626.4,2.75754]
[1736260988053,1.0229,3627.3,3626.8,2.75719]
[1736260988443,1.0229,3627.3,3626.4,0.309654]
[1736260988653,1.0229,3627.3,3626.3,2.75762]
[1736260988865,1.0229,3627.3,3626.1,0.339]
[1736260989090,1.0229,3627.3,3626.4,2.75748]
[1736260989294,1.0229,3627.3,3626.1,3.339]
[1736260989475,1.0229,3627.3,3626.1,0.339]
[1736260989651,1.0229,3627.3,3626.3,2.75763]
[1736260990010,1.0229,3627.3,3626.5,5.75746]
[1736260990189,1.0229,3627.3,3626.6,0.02756988]
[1736260990351,1.0229,3627.3,3626.6,2.75735]
[1736260990658,1.0229,3627.3,3626.1,0.339]
[1736260990659,2.75599,3628.5,3627.1,2.757]
[1736260990850,0.55,3628.2,3626.8,2.75721]
[1736260991047,0.55,3628.0,3626.9,3.09617]
[1736260991654,0.55,3628.0,3626.9,0.339]
[1736260991854,0.55,3628.0,3626.9,3.09616]
[1736260993288,0.55,3628.0,3627.0,2.75708]
[1736260993489,0.55,3628.0,3626.9,0.36656902]
[1736260993690,0.723119,3628.0,3627.2,2.75692]
[1736260993989,0.723119,3628.0,3626.9,0.36656902]
[1736260994175,0.723119,3628.0,3626.9,0.339]
[1736260994488,0.55,3627.8,3627.0,0.338]
[1736260994701,0.173119,3628.0,3626.3,3.52200291]
[1736260994986,0.55,3627.6,3626.9,0.338]
[1736260995187,0.55,3627.4,3626.9,0.338]
[1736260995493,0.55,3627.4,3626.8,0.338]
[1736260995865,0.55,3627.8,3626.8,0.338]
[1736260996067,0.55,3627.8,3627.0,2.75705]
[1736260996277,1.0229,3627.9,3627.0,2.75705]
[1736260996792,1.4181209,3627.9,3627.2,2.75687]
[1736260996996,1.4181209,3627.9,3627.4,2.75677]
[1736260996997,1.0229,3627.9,3627.4,2.75677]
[1736260997993,1.0229,3627.9,3627.5,2.75671]
[1736260998162,1.0229,3628.3,3627.4,0.02756641]
[1736260998365,0.01,3628.4,3627.8,3.52200291]
[1736260998578,0.01,3628.4,3628.3,6.27811291]
[1736260998760,0.01,3628.4,3628.3,6.61611291]
[1736260998970,0.01,3628.4,3628.3,9.61611291]
[1736260999186,0.01,3628.4,3628.3,10.70161291]
[1736261000962,1.0229,3629.5,3628.8,2.75567]
[1736261001304,1.0229,3629.5,3628.9,2.78320372]
[1736261001662,1.0229,3629.5,3628.9,2.75565]
[1736261001858,1.0229,3629.9,3628.9,2.75565]
[1736261002059,0.45046163,3629.8,3628.9,2.75565]
[1736261002360,0.45046163,3629.8,3629.1,2.75547]
[1736261002670,1.0229,3629.9,3629.2,2.75541]
[1736261002872,1.0229,3629.9,3628.8,3.52200291]
[1736261002873,3.7778,3629.9,3628.8,3.52200291]
[1736261003194,0.55,3629.8,3628.5,2.75595]
[1736261003356,0.55,3629.8,3628.3,3.52200291]
[1736261003357,1.0229,3629.9,3628.8,0.329]
[1736261003565,1.0229,3629.9,3629.1,2.75545]
[1736261003970,1.41835263,3629.9,3629.1,2.75545]
[1736261004169,1.0229,3629.9,3628.9,2.78319235]
[1736261004386,1.0229,3629.9,3628.8,3.85100291]
[1736261004696,1.0229,3629.9,3628.9,0.02755235]
[1736261004987,1.0229,3629.9,3629.3,2.75533]
[1736261006459,1.0229,3629.9,3629.2,2.75537]
[1736261007005,1.0229,3629.9,3629.1,2.75549]
[1736261007293,0.1769563,3630.1,3629.3,6.27729291]
[1736261007465,0.1769563,3630.1,3629.8,2.75496]
[1736261007869,0.1769563,3630.1,3628.9,1.1599]
[1736261008071,0.1769563,3630.1,3629.0,0.329]
[1736261008370,0.1769563,3630.1,3629.3,2.75535]
[1736261008961,0.1769563,3630.1,3629.7,2.75503]
[1736261009486,0.1769563,3630.1,3629.4,2.75521]
[1736261009688,0.1769563,3630.1,3629.3,6.27728291]
[1736261009999,0.1769563,3630.1,3629.3,3.52200291]
[1736261010159,0.1769563,3630.1,3629.3,6.27734291]
[1736261010562,0.1769563,3630.1,3629.4,2.75527]
[1736261010758,0.1769563,3630.1,3629.7,2.75504]
[1736261011700,0.1769563,3630.1,3629.8,2.78246737]
[1736261011897,0.1769563,3630.1,3629.3,3.52200291]
[1736261012111,0.1769563,3630.1,3629.3,6.27728291]
[1736261012265,0.1769563,3630.1,3629.4,2.75526]
[1736261012459,0.1769563,3630.1,3628.9,1.1599]
[1736261012688,0.47011293,3630.1,3629.2,2.75542]
[1736261012894,0.47011293,3630.1,3629.0,0.329]
[1736261012895,0.47011293,3630.1,3629.3,2.75531]
[1736261013071,0.1769563,3630.1,3629.3,3.52200291]
[1736261013278,0.1769563,3630.1,3629.5,2.75518]
[1736261013481,0.1769563,3630.1,3629.2,2.75537]
[1736261013685,0.1769563,3630.1,3629.3,2.75535]
[1736261014206,0.1769563,3630.1,3629.4,0.329]
[1736261014528,0.47011193,3630.1,3629.4,0.329]
[1736261014836,0.1769563,3630.1,3629.4,0.329]
[1736261015174,0.1769563,3630.1,3628.3,2.75603]
[1736261015175,2.75497,3629.8,3629.5,0.329]
[1736261015410,3.30482,3630.0,3629.5,0.329]
[1736261015992,0.55,3630.0,3628.7,2.75578]
[1736261016172,2.75538,3629.3,3628.8,0.329]
[1736261016375,3.8336,3629.1,3628.1,3.14937705]
[1736261016668,1.0781,3629.1,3628.6,0.329]
[1736261017495,1.0781,3629.1,3628.1,5.90563705]
[1736261017715,1.0781,3629.1,3628.6,0.329]
[1736261017914,1.461438,3629.1,3628.6,0.329]
[1736261018105,1.0781,3629.1,3628.6,0.329]
[1736261019389,2.75558,3629.0,3627.8,3.14937705]
[1736261019716,1.0781,3629.1,3627.4,2.75676]
[1736261019717,1.0781,3629.1,3627.9,0.329]
[1736261019890,1.0781,3629.1,3627.9,3.08538]
[1736261020095,1.0781,3629.1,3628.0,2.75632]
[1736261020483,1.0781,3629.1,3628.2,3.14937705]
[1736261020811,2.9317663,3630.1,3628.6,3.14937705]
[1736261020812,1.0781,3629.8,3628.6,3.14937705]
[1736261021038,1.0781,3629.8,3629.1,3.14937705]
[1736261021243,1.0781,3629.8,3629.2,3.06942]
[1736261021478,0.1769563,3630.1,3629.5,2.75513]
[1736261021602,0.1769563,3630.1,3629.3,0.0275518]
[1736261021603,0.1769563,3630.1,3629.3,2.75533]
[1736261021988,0.1769563,3630.1,3629.2,3.06941]
[1736261022348,0.1769563,3630.1,3629.4,2.75524]
[1736261022647,0.57792893,3630.1,3629.2,3.0694]
[1736261023424,3.33270893,3630.1,3629.2,0.314]
[1736261023585,0.1769563,3630.1,3629.2,0.314]
[1736261025026,2.75498,3629.8,3629.2,0.314]
[1736261025512,3.30484,3630.0,3629.2,0.314]
[1736261025694,2.75484,3630.0,3629.2,0.314]
[1736261025889,0.40098963,3629.9,3629.2,0.314]
[1736261028312,2.9317063,3630.1,3629.2,0.314]
[1736261028713,0.1769563,3630.1,3629.3,0.02755219]
[1736261028904,0.1769563,3630.1,3629.2,3.0694]
[1736261029399,0.1769563,3630.1,3629.2,0.314]
[1736261029610,0.1769563,3630.1,3629.3,2.75532]
[1736261029830,0.57792093,3630.1,3629.3,2.6629896]
[1736261030255,0.57792093,3630.1,3629.4,2.78281975]
[1736261030466,0.1769563,3630.1,3629.4,2.78281975]
[1736261030761,0.1769563,3630.1,3629.5,2.7552]
[1736261031067,0.1769563,3630.1,3629.6,2.75511]
[1736261031399,0.1769563,3630.1,3629.7,2.75503]
[1736261032164,0.1769563,3630.1,3629.2,0.314]
[1736261032368,0.1769563,3630.1,3629.4,2.75521]
[1736261032649,0.1769563,3630.1,3629.3,0.314]
[1736261032650,1.0781,3629.9,3629.3,0.314]
[1736261032802,0.40098863,3629.8,3629.3,0.314]
[1736261032999,0.40098863,3629.8,3629.2,0.314]
[1736261033221,3.83301,3629.9,3629.2,0.314]
[1736261033438,2.75497,3629.8,3629.2,0.314]
[1736261033647,0.1769563,3630.1,3628.0,0.08752583]
[1736261033799,3.55,3628.1,3628.0,0.08752583]
[1736261034000,3.14937705,3629.1,3628.0,0.08752583]
[1736261034194,2.75539,3629.3,3628.0,0.08752583]
[1736261034461,2.7553,3629.4,3628.0,2.84385583]
[1736261034602,2.75489,3629.9,3628.1,0.02755931]
[1736261034802,3.77958,3628.7,3628.0,0.08752583]
[1736261035045,0.377958,3628.6,3628.0,0.08752583]
[1736261035240,0.377958,3628.6,3627.7,0.314]
[1736261035425,2.75602,3628.5,3627.7,0.314]
[1736261035740,0.55,3628.1,3627.1,0.89]
[1736261035957,3.30626,3628.1,3627.1,0.89]
[1736261036436,2.75643,3627.9,3627.1,0.89]
[1736261036740,3.30626,3628.1,3627.1,0.89]
[1736261037241,3.739256,3628.1,3627.1,1.204]
[1736261037838,3.739256,3628.1,3627.2,0.314]
[1736261038612,1.0237,3628.2,3627.3,2.75686]
[1736261038816,1.0237,3628.2,3627.4,0.02756552]
[1736261039227,1.0237,3628.8,3627.4,0.02756552]
[1736261039536,0.55,3628.5,3627.5,2.75664]
[1736261039735,0.55,3628.5,3627.3,2.75686]
[1736261039736,3.30596,3628.5,3627.3,2.75686]
[1736261039938,0.982966,3628.5,3627.2,0.314]
[1736261040139,2.75613,3628.3,3627.2,0.314]
[1736261040512,0.982966,3628.5,3627.2,0.314]
[1736261040715,2.75612,3628.3,3627.2,2.7569]
[1736261040925,0.55,3628.7,3627.4,1.0881]
[1736261041103,0.75737,3628.6,3627.4,1.0881]
[1736261041305,0.75737,3628.6,3627.3,0.314]
[1736261041306,2.75624,3628.2,3627.3,0.314]
[1736261041732,0.55,3628.4,3627.3,0.314]
[1736261042117,2.75644,3627.9,3627.3,0.314]
[1736261042319,0.75737,3628.6,3627.3,0.314]
[1736261042532,2.75611,3628.4,3627.3,0.314]
[1736261042731,0.29144737,3628.5,3627.4,0.02756532]
[1736261042929,2.75586,3628.7,3627.6,2.7566]
[1736261043434,3.30601,3628.5,3627.4,2.75678]
[1736261043633,0.55,3628.5,3627.3,0.314]
[1736261043906,4.0237,3628.8,3627.3,0.314]
[1736261043907,2.75637,3628.0,3627.3,0.314]
[1736261044222,1.0237,3628.2,3627.1,0.89]
[1736261044412,0.55,3628.0,3627.1,0.89]
[1736261044604,2.75661,3627.7,3627.1,0.89]
[1736261045029,0.55,3628.1,3627.1,0.89]
[1736261045234,0.55,3627.8,3627.1,0.89]
[1736261045420,2.75643,3627.9,3627.1,0.89]
[1736261045619,0.15737,3628.0,3627.1,0.89]
[1736261045847,2.91372,3628.0,3627.1,0.89]
[1736261046368,0.15737,3628.0,3627.1,0.89]
[1736261046647,0.55,3627.9,3627.1,0.89]
[1736261047145,2.75649,3627.8,3627.1,0.89]
[1736261047331,0.173107,3627.9,3627.1,0.89]
[1736261047921,1.0237,3628.2,3627.1,0.89]
[1736261048119,2.75617,3628.3,3627.2,3.90463]
[1736261048526,2.7562,3628.2,3627.2,3.90463]
[1736261048719,0.55,3628.5,3627.2,1.1477]
[1736261048720,2.75636,3628.0,3627.2,1.1477]
[1736261048933,0.55,3628.3,3627.2,1.1477]
[1736261049133,0.36993771,3628.2,3627.3,2.75685]
[1736261049533,3.28775182,3628.7,3627.4,2.75678]
[1736261049708,0.55,3628.6,3627.2,3.90463]
[1736261049908,2.75635,3628.0,3627.2,1.1477]
[1736261050147,2.75635,3628.0,3627.1,0.89]
[1736261050148,0.55,3628.0,3627.1,0.89]
[1736261050321,2.75653,3627.8,3627.1,0.89]
[1736261050645,0.36993771,3627.9,3627.1,0.89]
[1736261050846,2.7567,3627.6,3627.1,0.89]
[1736261051047,0.55,3627.9,3627.1,0.89]
[1736261051247,1.0237,3628.0,3627.1,0.89]
[1736261051248,0.55,3627.4,3627.1,0.89]
[1736261051411,0.55,3627.6,3627.1,0.89]
[1736261051828,3.30694,3627.2,3627.1,0.89]
[1736261052011,0.330694,3627.2,3627.1,0.89]
[1736261052239,1.0237,3628.0,3627.1,0.89]
[1736261052548,2.75661,3627.7,3627.1,0.89]
[1736261052753,0.55,3627.8,3627.1,0.89]
[1736261052941,2.75644,3627.9,3627.1,0.89]
[1736261052942,0.55,3627.6,3627.1,0.89]
[1736261053124,0.733014,3627.7,3627.1,0.89]
[1736261054529,1.0237,3628.4,3627.2,1.1222]
[1736261055013,4.0237,3628.4,3627.2,1.1222]
[1736261055218,4.0237,3628.4,3627.2,3.87913]
[1736261055219,2.75619,3628.2,3627.2,3.87913]
[1736261055760,1.0237,3628.4,3627.3,0.02756627]
[1736261055968,2.75591,3628.6,3627.5,2.75665]
[1736261056122,0.49102581,3628.5,3627.6,0.299]
[1736261056892,0.55,3628.4,3627.6,0.299]
[1736261057197,2.75621,3628.2,3627.6,0.299]
[1736261057346,3.64040286,3628.5,3627.6,0.299]
[1736261057552,0.55,3628.3,3627.6,0.299]
[1736261057772,3.30611,3628.3,3627.6,0.299]
[1736261058550,0.55,3628.3,3627.6,0.299]
[1736261058766,0.55,3628.0,3627.2,1.1222]
[1736261059093,0.55,3628.0,3627.1,0.89]
[1736261059240,0.64556171,3627.9,3627.1,0.89]
[1736261059628,2.75664,3627.7,3627.1,0.89]
[1736261060036,0.55,3627.6,3627.1,0.89]
[1736261060242,3.30694,3627.2,3627.1,0.89]
[1736261061645,7.33064,3627.2,3627.1,0.48367674]
[1736261062042,0.55,3626.6,3625.7,1.0896]
[1736261062441,1.0237,3627.2,3625.7,1.0896]
[1736261062442,2.75712,3627.0,3625.8,2.758]
[1736261062771,2.75712,3627.0,3625.9,2.75786]
[1736261063000,0.55,3626.9,3625.9,2.75786]
[1736261063164,8.06311079,3627.7,3626.0,0.02757681]
[1736261063491,3.0,3627.6,3626.3,2.75759]
[1736261063693,0.55,3627.3,3626.3,2.75759]
[1736261063989,0.55,3627.3,3626.3,2.7576]
[1736261064194,0.55,3627.4,3626.1,2.75775]
[1736261064492,2.75697,3627.2,3626.1,2.75774]
[1736261064654,0.330697,3627.1,3626.2,2.75766]
[1736261065188,0.55,3627.0,3626.2,2.75766]
[1736261065803,2.75679,3627.5,3625.9,0.02757529]
[1736261066087,4.17307705,3627.7,3626.0,1.1396]
[1736261066088,1.0237,3627.7,3626.0,1.1396]
[1736261066287,1.0237,3627.7,3626.8,2.75717]
[1736261066492,0.37802,3627.6,3626.9,2.75714]
[1736261066695,2.18330374,3628.1,3627.0,1.167]
[1736261066991,1.13340374,3628.1,3627.4,2.75672]
[1736261067287,1.13340374,3628.1,3627.1,2.75698]
[1736261067592,1.13340374,3628.1,3627.8,2.75641]
[1736261067792,3.88340936,3628.6,3627.8,2.75641]
[1736261067793,1.0499,3628.6,3627.8,2.75641]
[1736261067994,0.66391994,3628.5,3627.6,2.75663]
[1736261068196,0.55,3628.4,3627.0,1.167]
[1736261068497,0.55,3628.3,3627.0,1.167]
[1736261068657,0.55,3628.3,3627.3,2.75682]
[1736261068981,1.35198799,3628.3,3627.0,1.167]
[1736261069289,1.35198799,3628.3,3627.4,2.75679]
[1736261069495,1.35198799,3628.3,3627.0,3.92402]
[1736261069657,1.35198799,3628.3,3627.4,2.75673]
[1736261070159,1.35198799,3628.3,3627.5,2.75667]
[1736261070354,0.66391994,3628.5,3627.3,0.02756539]
[1736261070569,1.0499,3628.9,3628.3,2.75609]
[1736261070774,1.13340374,3629.0,3628.3,2.75609]
[1736261070971,1.13340374,3629.0,3628.2,1.3777]
[1736261071170,5.02216749,3629.3,3628.2,1.3777]
[1736261071171,1.13340374,3629.2,3628.2,1.3777]
[1736261071394,0.66387694,3629.1,3628.2,1.3777]
[1736261071964,0.66387694,3629.1,3628.2,4.13382]
[1736261073066,1.13340374,3629.8,3628.8,2.75568]
[1736261073320,3.88837374,3629.8,3628.8,2.75568]
[1736261073465,2.75509,3629.7,3628.5,2.75589]
[1736261073675,0.55,3629.8,3628.2,1.3777]
[1736261074017,0.55,3629.6,3628.6,2.75587]
[1736261074232,5.33268079,3629.9,3628.2,4.3777]
[1736261074442,2.18330374,3629.9,3628.9,2.75563]
[1736261074577,4.93821374,3629.9,3628.9,2.75563]
[1736261075079,3.30497,3629.8,3628.6,0.02755491]
[1736261075393,3.30497,3629.8,3628.8,2.75571]
[1736261075581,0.735487,3629.7,3628.8,2.75571]
[1736261076134,0.735487,3629.7,3628.6,2.75586]
[1736261076279,0.735487,3629.7,3628.2,4.3777]
[1736261076280,0.55,3629.6,3628.2,1.0947]
[1736261076480,0.55,3629.6,3628.7,2.7558]
[1736261076680,0.735487,3629.7,3628.3,3.31055635]
[1736261076928,2.75498,3629.8,3628.4,3.19655564]
[1736261077087,2.75498,3629.8,3628.8,2.75572]
[1736261077582,2.75498,3629.8,3628.3,0.283]
[1736261077583,0.55,3629.6,3628.6,2.75581]
[1736261077778,0.55,3629.6,3628.3,0.283]
[1736261078028,0.55,3629.6,3628.4,0.283]
[1736261078029,0.55,3629.4,3628.4,0.283]
[1736261078197,0.385525,3629.3,3628.4,0.283]
[1736261078396,0.55,3629.7,3628.4,0.283]
[1736261078635,0.55,3629.7,3628.2,1.0947]
[1736261078837,0.55,3629.3,3628.5,0.283]
[1736261079183,0.55,3629.2,3628.5,0.283]
[1736261079386,3.0,3629.4,3628.5,0.283]
[1736261079620,0.61493771,3629.3,3628.5,0.283]
[1736261079788,0.55,3629.2,3628.5,0.283]
[1736261080202,0.55,3629.2,3628.2,1.0947]
[1736261080407,3.80541,3629.1,3628.1,2.75625]
[1736261080688,3.80541,3629.1,3628.2,0.283]
[1736261080954,0.0075,3628.9,3628.2,0.283]
[1736261081091,2.75577,3628.8,3628.2,0.283]
[1736261081438,6.46274705,3628.7,3627.7,0.283]
[1736261081901,0.0075,3628.8,3627.8,2.75647]
[1736261082247,0.0075,3628.8,3627.9,2.7564]
[1736261082607,1.10843918,3628.8,3627.9,2.7564]
[1736261082795,1.10843918,3628.8,3627.7,0.283]
[1736261083003,3.69937705,3628.7,3626.7,3.0]
[1736261083204,3.69937705,3628.7,3627.1,2.75699]
[1736261083205,2.7562,3628.2,3627.1,2.75699]
[1736261083339,0.0075,3628.2,3627.3,2.75686]
[1736261083546,0.59880271,3628.2,3627.3,2.75686]
[1736261083800,0.59880271,3628.2,3626.9,4.3394]
[1736261083997,3.35501271,3628.2,3627.1,2.757]
[1736261084200,0.59880271,3628.2,3626.9,4.3394]
[1736261084345,0.59880271,3628.2,3627.1,2.75702]
[1736261084346,3.35500271,3628.2,3627.1,2.75702]
[1736261084545,3.35500271,3628.2,3626.9,4.3394]